[Event "Austrian Championship 2022"]
[Site "Vienna"]
[Date "2022.08.18"]
[Round "8.4"]
[White "Hengl, Philip"]
[Black "Mayrhuber, Tobias"]
[Result "1/2-1/2"]
[ECO "C78"]
[WhiteElo "1968"]
[BlackElo "2010"]
[Annotator "NA RC"]
[PlyCount "67"]
[EventDate "2022.08.12"]
[EventType "swiss"]
[EventCountry "AUT"]
[SourceTitle "playchess.com"]
[Source "ChessBase"]
[SourceQuality "1"]
[TimeControl "40/5400+30:1800+30"]

1. e4 {[%emt 0:00:01]} e5 {[%emt 0:00:08]} 2. Nf3 {[%emt 0:00:06]} Nc6 {[%emt 0:00:05]} 3. Bb5 {[%emt 0:00:04]} a6 {[%emt 0:00:18]} 4. Ba4 {[%emt 0:00:06]} Nf6 {[%emt 0:00:12]} 5. O-O {[%emt 0:00:10]} b5 {[%emt 0:00:10]} 6. Bb3 {[%emt 0:00:05]} Bc5 {[%emt 0:00:12]} 7. c3 {[%emt 0:01:01]} d6 {[%emt 0:05:04]} 8. d4 {[%emt 0:01:17]} Bb6 {[%emt 0:00:22]} 9. h3 {[%emt 0:01:59]} Bb7 {[%emt 0:04:11]} 10. Re1 {[%emt 0:00:50]} h6 {[%emt 0:01:12]} 11. Nbd2 {[%emt 0:00:10]} O-O {[%emt 0:09:39]} 12. Nf1 {[%emt 0:00:55]} Ne7 {[%emt 0:11:28]} 13. Ng3 {[%emt 0:02:54]} Ng6 {[%emt 0:00:13]} 14. Bc2 {[%emt 0:01:09]} Re8 {[%emt 0:03:13]} 15. a4 {[%emt 0:09:50]} c5 {[%emt 0:06:06]} 16. d5 {[%emt 0:01:32]} c4 {[%emt 0:01:16]} 17. Nf5 {[%emt 0:17:35]} Rc8 {[%emt 0:04:56]} 18. g3 {[%emt 0:05:47]} Qd7 {[%emt 0:03:54]} 19. Kg2 {[%emt 0:01:50]} Nh7 {[%emt 0:03:20]} 20. Qe2 {[%emt 0:10:04]} Rc7 {[%emt 0:04:09]} 21. Be3 {[%emt 0:01:11]} Bxe3 {[%emt 0:06:58]} 22. Qxe3 {[%emt 0:00:38]} Rc5 {[%emt 0:02:44]} 23. axb5 {[%emt 0:00:51]} axb5 {[%emt 0:00:06]} 24. Ra7 {[%emt 0:00:51]} Rb8 {[%emt 0:02:18]} 25. Rea1 {[%emt 0:04:46]} Qd8 {[%emt 0:02:43]} 26. Nd2 {[%emt 0:25:43]} Ne7 {[%emt 0:04:45]} 27. Nxe7+ {[%emt 0:00:16]} Qxe7 {[%emt 0:00:05]} 28. b4 {[%emt 0:00:27]} cxb3 {[%emt 0:00:09]} 29. Nxb3 {[%emt 0:00:11]} Rc7 {[%emt 0:00:28]} 30. Na5 {[%emt 0:01:29]} Ba8 {[%emt 0:05:58]} 31. Nb3 {[%emt 0:07:18]} Bb7 {[%emt 0:00:17]} 32. Na5 {[%emt 0:00:06]} Ba8 {[%emt 0:00:05]} 33. Nb3 {[%emt 0:00:05]} Bb7 {[%emt 0:00:04]} 34. Na5 {[%emt 0:00:04]} 1/2-1/2

[Event "Austrian Championship 2022"]
[Site "Vienna"]
[Date "2022.08.18"]
[Round "8.5"]
[White "Morgunov, Marc"]
[Black "Schreiner, Peter"]
[Result "1/2-1/2"]
[ECO "C65"]
[WhiteElo "2376"]
[BlackElo "2416"]
[Annotator "TA"]
[PlyCount "96"]
[EventDate "2022.08.12"]
[EventType "swiss"]
[EventCountry "AUT"]
[SourceTitle "playchess.com"]
[Source "ChessBase"]
[SourceQuality "1"]
[TimeControl "40/5400+30:1800+30"]

{[%evp 12,96,4,-7,13,6,36,17,51,47,48,47,59,62,62,79,80,79,76,83,93,38,70,35,60,23,74,44,43,35,40,39,35,37,50,46,50,46,25,1,222,222,214,53,66,56,49,56,67,29,87,-34,-27,-34,-5,-16,-2,-2,-9,-18,-20,-16,0,0,0,0,0,-1,-3,-17,-19,-148,-155,-142,-62,-45,-39,-42,-65,-143,-52,-105,-14,-64,-56,-61,-60]} 1. e4 {[%emt 0:00:02]} e5 {[%emt 0:02:29]} 2. Nf3 {[%emt 0:00:11]} Nc6 {[%emt 0:00:20]} 3. Bb5 {[%emt 0:00:05]} Nf6 {[%emt 0:00:05]} 4. d3 {[%emt 0:00:22]} Bc5 {[%emt 0:01:58]} 5. c3 {[%emt 1:32:20]} O-O {[%emt 0:01:24]} 6. O-O {[%emt 0:00:00]} d6 {[%emt 0:07:59]} 7. Bg5 {[%emt 0:00:00]} h6 {[%emt 0:02:20] C65: Ruy Lopez: Berlin Defence (3...Nf6), unusual lines and 4 0-0 Bc5.} 8. Bh4 {[%emt 0:00:00]} Bg4 {[%emt 0:06:20]} 9. h3 {[%emt 0:00:00] is the legacy move (9.Nbd2).} Bh5 {[%emt 0:05:56] The position is equal.} 10. g4 {[%emt 0:00:00]} Bg6 {[%emt 0:04:09]} 11. Nbd2 {[%emt 0:00:00]} Qe7 {[%emt 0:03:00]} 12. Re1 {[%emt 0:00:00]} Nd8 {[%emt 0:09:02]} 13. d4 {[%emt 0:00:00]} Bb6 {[%emt 0:01:59] [#]} 14. Nc4 $146 {[%emt 0:00:00]} ({Predecessor:} 14. d5 c6 15. Ba4 cxd5 16. exd5 Rc8 17. Bc2 Bxc2 18. Qxc2 g5 19. Nxg5 hxg5 20. Bxg5 Bxf2+ {½-½ (32) Gallego Alcaraz,A (2502)-Doluhanova,E (2348) Caleta 2019}) 14... c6 {[%emt 0:05:14]} 15. Nxb6 {[%emt 0:00:00]} axb6 {[%emt 0:00:51]} 16. Bd3 {[%emt 0:00:00]} (16. Bf1 $1 $16) 16... Bh7 $14 {[%emt 0:04:30]} 17. Bg3 {[%emt 0:00:00][%cal Rd4e5]} (17. d5 $5) 17... Nd7 {[%emt 0:02:21]} 18. Bf1 {[%emt 0:00:00]} g5 {[%emt 0:05:34]} (18... Ne6 $1 $11) 19. Qd2 {[%emt 0:00:00]} f6 {[%emt 0:02:14]} 20. b4 $36 {[%emt 0:00:00][%mdl 2048] White has the initiative.} b5 {[%emt 0:04:27]} 21. c4 {[%emt 0:00:00]} bxc4 {[%emt 0:02:42]} 22. Bxc4+ {[%emt 0:00:00]} Kh8 {[%emt 0:02:25]} 23. a4 {[%emt 0:00:00][%cal Ba2a4,Ba4a5][%mdl 32]} Ne6 {[%emt 0:10:53]} 24. a5 {[%emt 0:00:00]} h5 {[%emt 0:08:16]} 25. d5 {[%emt 0:00:00]} Nc7 {[%emt 0:03:40]} (25... cxd5 $1 $11 26. Bxd5 (26. Qxd5 Bg8 $11) 26... h4) 26. dxc6 $18 {[%emt 0:01:21]} ({Don't take} 26. gxh5 $6 c5 $16) 26... bxc6 {[%emt 0:00:02][%cal Bb7c6,Bc6b5][%mdl 32]} 27. Red1 $2 {[%emt 0:01:49]} (27. Rad1 $18 hxg4 28. Nxg5 $1 {[%mdl 512]} (28. Qxd6 Qxd6 29. Rxd6 gxf3 $16) (28. hxg4 Ne8 $16)) 27... Ne8 $14 {[%emt 0:01:56]} 28. Qe3 {[%emt 0:01:48]} ({Don't play} 28. gxh5 Bxe4 29. Nh2 d5 $11) (28. Bd3 $5 {[%cal Rg4h5]}) 28... hxg4 {[%emt 0:00:33]} 29. hxg4 {[%emt 0:00:04]} Nc7 {[%emt 0:00:06]} 30. Qd2 {[%emt 0:01:26]} Ne8 {[%emt 0:00:27]} (30... Bxe4 $11 {keeps the balance.} 31. Qxd6 Qxd6 32. Rxd6 Bxf3 33. Rxd7 Nb5) 31. b5 {[%emt 0:02:31] 0x0.00236451b092dp-1022s more active pieces.} ({Better is} 31. Kg2 $16) 31... cxb5 $1 $15 {[%emt 0:01:19]} 32. Bd5 {[%emt 0:00:04]} Ra7 {[%emt 0:00:15]} (32... Ra6 $5 {[%cal Rd7c5]}) 33. Ne1 {[%emt 0:00:35]} Nc5 {[%emt 0:00:35]} 34. f3 {[%emt 0:00:15]} Nc7 {[%emt 0:00:18]} 35. Nc2 {[%emt 0:00:41]} Nxd5 {[%emt 0:00:41]} 36. Qxd5 {[%emt 0:00:09]} Bg8 {[%emt 0:00:24]} 37. Qxd6 {[%emt 0:01:19]} Qxd6 {[%emt 0:00:07]} 38. Rxd6 {[%emt 0:00:04] And now a6 would win.} Nb3 $1 {[%emt 0:02:39][%csl LRa1,LRa5]} 39. Rad1 {[%emt 0:01:01] Hoping for a6.} Nxa5 {[%emt 0:00:00]} 40. Nb4 {[%emt 0:02:54][%cal Od6f6]} Nc4 {[%emt 0:00:00]} 41. Rc6 {[%emt 0:30:26]} (41. Bf2 $11 Rc7 42. Na6) 41... Ra3 $1 $17 {[%emt 0:07:53]} 42. Rd3 {[%emt 0:00:00] [#]} Rxd3 {[%emt 0:03:01]} (42... Ra1+ $1 $17 43. Kg2 Rb1) 43. Nxd3 $15 {[%emt 0:00:00]} Rd8 {[%emt 0:08:16]} 44. Nb4 {[%emt 0:00:00]} Rd1+ {[%emt 0:03:07]} 45. Kf2 {[%emt 0:00:00] [#]} (45. Kg2 $1 $15) 45... Rd6 {[%emt 0:03:54]} (45... Rb1 $1 $17 {[%cal Rb1b2]} 46. Nd3 Nb2 47. Nxb2 Rxb2+ 48. Ke1 Kg7 49. Rc7+ Bf7) 46. Rc5 {[%emt 0:00:00]} (46. Rc8 $15) 46... Rb6 {[%emt 0:02:16]} (46... Rd2+ $17 47. Ke1 Rb2) 47. Ke1 {[%emt 0:00:00]} (47. Ke2 $11) 47... Rb7 {[%emt 0:00:48]} 48. Bf2 {[%emt 0:00:00]} Kg7 {[%emt 0:01:04] Quite a comeback for White.  Weighted Error Value: White=0.29 (precise) /Black=0.23 (precise)} 1/2-1/2

[Event "Austrian Championship 2022"]
[Site "Vienna"]
[Date "2022.08.18"]
[Round "8.5"]
[White "Fuchs, Patrick"]
[Black "Stadlinger, Lea"]
[Result "0-1"]
[ECO "C61"]
[WhiteElo "1990"]
[BlackElo "1723"]
[Annotator "NA RC"]
[PlyCount "76"]
[EventDate "2022.08.12"]
[EventType "swiss"]
[EventCountry "AUT"]
[SourceTitle "playchess.com"]
[Source "ChessBase"]
[SourceQuality "1"]
[TimeControl "40/5400+30:1800+30"]

1. e4 {[%emt 0:00:03]} e5 {[%emt 0:00:07]} 2. Nf3 {[%emt 0:00:11]} Nc6 {[%emt 0:00:04]} 3. Bb5 {[%emt 0:00:09]} Nd4 {[%emt 0:00:08]} 4. Nxd4 {[%emt 0:00:24]} exd4 {[%emt 0:00:10]} 5. O-O {[%emt 0:01:15]} c6 {[%emt 0:00:15]} 6. Be2 {[%emt 0:05:11]} d5 {[%emt 0:03:13]} 7. exd5 {[%emt 0:00:28]} Qxd5 {[%emt 0:01:28]} 8. Re1 {[%emt 0:02:59]} Be7 {[%emt 0:02:13]} 9. Bf3 {[%emt 0:05:41]} Qd8 {[%emt 0:01:07]} 10. b4 {[%emt 0:04:50]} Nf6 {[%emt 0:02:54]} 11. Qe2 {[%emt 0:00:24]} Be6 {[%emt 0:02:39]} 12. b5 {[%emt 0:01:04]} Qb6 {[%emt 0:08:10]} 13. a4 {[%emt 0:11:31]} O-O {[%emt 0:03:15]} 14. Na3 {[%emt 0:01:15]} c5 {[%emt 0:05:51]} 15. Nc4 {[%emt 0:00:38]} Qc7 {[%emt 0:01:17]} 16. d3 {[%emt 0:05:14]} Rfe8 {[%emt 0:05:47]} 17. Bg5 {[%emt 0:03:52]} Bxc4 {[%emt 0:07:20]} 18. Bxf6 {[%emt 0:03:00]} Be6 {[%emt 0:01:36]} 19. Be5 {[%emt 0:03:38]} Qd7 {[%emt 0:05:58]} 20. Qe4 {[%emt 0:02:13]} b6 {[%emt 0:04:38]} 21. Qb7 {[%emt 0:02:13]} Qxb7 {[%emt 0:03:22]} 22. Bxb7 {[%emt 0:02:53]} Rad8 {[%emt 0:02:26]} 23. Bc7 {[%emt 0:00:31]} Rd7 {[%emt 0:00:52]} 24. Bc6 {[%emt 0:00:12]} Rxc7 {[%emt 0:00:30]} 25. Bxe8 {[%emt 0:00:09]} Bd5 {[%emt 0:00:58]} 26. a5 {[%emt 0:13:56]} bxa5 {[%emt 0:05:10]} 27. Rxa5 {[%emt 0:01:43]} g6 {[%emt 0:02:58]} 28. Ra6 {[%emt 0:03:14]} c4 {[%emt 0:02:36]} 29. Bc6 {[%emt 0:02:22]} cxd3 {[%emt 0:01:50]} 30. Bxd5 {[%emt 0:13:44]} dxc2 {[%emt 0:00:44]} 31. Rc6 {[%emt 0:00:17]} d3 {[%emt 0:06:27]} 32. Rxc7 {[%emt 0:03:39]} d2 {[%emt 0:00:22]} 33. Rcxe7 {[%emt 0:00:41]} c1=Q {[%emt 0:05:19]} 34. Bxf7+ {[%emt 0:00:13]} Kf8 {[%emt 0:01:04]} 35. Kf1 {[%emt 0:00:18]} d1=Q {[%emt 0:04:31]} 36. Ba2 {[%emt 0:03:07]} Qd3+ {[%emt 0:03:53]} 37. Kg1 {[%emt 0:00:03]} Qxe1+ {[%emt 0:00:55]} 38. Rxe1 {[%emt 0:00:08]} Qd2 {[%emt 0:00:21]} 0-1

[Event "Austrian Championship 2022"]
[Site "Vienna"]
[Date "2022.08.18"]
[Round "8.6"]
[White "Kruckenhauser, Arthur"]
[Black "Schwabeneder, Florian"]
[Result "1/2-1/2"]
[ECO "B00"]
[WhiteElo "2303"]
[BlackElo "2430"]
[Annotator "TA"]
[PlyCount "109"]
[EventDate "2022.08.12"]
[EventType "swiss"]
[EventCountry "AUT"]
[SourceTitle "playchess.com"]
[Source "ChessBase"]
[SourceQuality "1"]
[TimeControl "40/5400+30:1800+30"]

{[%evp 9,109,37,54,0,37,44,39,-5,18,-14,0,-86,-37,-35,-45,-44,-25,-40,-31,-47,-29,-71,-78,-84,-62,-92,-75,-91,-69,-83,-62,-64,-71,-70,-70,-92,-59,-67,-54,-82,-82,-101,-96,-102,-108,-116,-116,-121,-76,-76,-76,-76,-76,-76,-77,-93,-76,-83,-16,-16,-16,-16,0,-24,-11,-136,-129,-133,0,0,0,0,0,0,0,0,0,0,0,-70,0,-48,-42,-43,0,0,0,0,0,0,0,0,0,0,0,0,0,0,0,0,0,0]} 1. e4 {[%emt 0:01:30]} Nc6 {[%emt 0:00:23]} 2. d4 {[%emt 0:03:59]} d5 {[%emt 0:00:22]} 3. e5 {[%emt 0:00:51]} Bf5 {[%emt 0:00:22]} 4. c3 {[%emt 0:00:40]} e6 {[%emt 0:00:35]} 5. Be2 {[%emt 0:10:52]} Nge7 {[%emt 0:09:38] [#]} 6. Na3 $146 {[%emt 0:13:56] B00: Queen's Fianchetto Defence, Nimzowitsch Defence.} (6. Nd2 $14) ({Predecessor:} 6. Nd2 f6 7. exf6 gxf6 8. Ngf3 Qd7 9. Nh4 Bg6 10. O-O Nf5 11. Nxf5 Bxf5 12. b4 Bd6 13. b5 Na5 14. Nb3 Nc4 15. a4 a6 16. bxa6 Rxa6 17. Re1 {1-0 (17) Gossmann,E (1897)-Kachibacha,J (1800) FICGS email 2020}) 6... Be4 {[%emt 0:18:16]} 7. f3 {[%emt 0:04:42]} Bg6 {[%emt 0:00:15]} 8. Qb3 {[%emt 0:03:09] White is slightly better.} Rb8 {[%emt 0:02:49]} 9. Bg5 {[%emt 0:01:00]} Qd7 {[%emt 0:01:48][%cal Ob7b5]} 10. g4 {[%emt 0:03:27]} (10. Nh3 $11 {remains equal.}) 10... Nc8 {[%emt 0:06:04]} ({Black should play} 10... b5 $17 {...b4 is the strong threat.} 11. Bxe7 (11. Bxb5 a6 $17) 11... Kxe7 12. Nxb5 (12. Bxb5 a6 $17) 12... Rb6) 11. Nh3 $15 {[%emt 0:04:02]} Na5 {[%emt 0:11:47]} 12. Qd1 {[%emt 0:02:09]} h6 {[%emt 0:02:24]} 13. Be3 {[%emt 0:07:55]} Bxa3 {[%emt 0:01:26]} 14. bxa3 {[%emt 0:00:03]} Nc4 {[%emt 0:00:31]} 15. Bxc4 {[%emt 0:01:50]} dxc4 {[%emt 0:00:09]} 16. Nf4 {[%emt 0:00:04]} Ne7 {[%emt 0:02:09] Inhibits d5.} (16... Nb6 {looks sharper.} 17. Kf2 Nd5 18. h4 Nxf4 19. Bxf4 h5) 17. O-O {[%emt 0:06:53]} b6 {[%emt 0:04:10]} 18. Rf2 {[%emt 0:04:09]} Rd8 {[%emt 0:03:37]} 19. Qe2 {[%emt 0:02:10]} Nd5 {[%emt 0:05:22]} 20. Nxg6 {[%emt 0:02:00]} fxg6 {[%emt 0:00:09]} 21. Bd2 {[%emt 0:00:06]} Qc6 {[%emt 0:06:59]} 22. Rb1 {[%emt 0:04:28]} a5 {[%emt 0:03:39]} 23. Qe4 {[%emt 0:01:51]} Ne7 {[%emt 0:00:19]} 24. Qc2 {[%emt 0:00:32]} Kd7 {[%emt 0:04:04][%cal Be8d7,Bd7c8,Bc8b7][%mdl 32]} 25. Kg2 {[%emt 0:03:33]} Rdf8 {[%emt 0:00:10]} 26. Kg3 {[%emt 0:00:28]} Rf7 {[%emt 0:03:55]} 27. Rbf1 {[%emt 0:00:53]} Rhf8 {[%emt 0:00:12]} 28. h4 {[%emt 0:02:32]} Kc8 {[%emt 0:04:13]} 29. a4 {[%emt 0:02:52]} Kb7 {[%emt 0:02:59]} 30. Bc1 {[%emt 0:00:06]} Nd5 $1 {[%emt 0:01:28]} 31. Bd2 {[%emt 0:02:06]} Qe8 {[%emt 0:01:20]} 32. f4 {[%emt 0:02:56]} Ne7 {[%emt 0:00:37]} 33. Bc1 {[%emt 0:01:19] [#]} h5 {[%emt 0:00:56]} (33... Rh8 $1 $17) 34. Ba3 $1 $11 {[%emt 0:00:16]} (34. Qe4+ Nd5 35. Ba3 Rh8 $17) 34... hxg4 {[%emt 0:00:34]} 35. Bxe7 {[%emt 0:00:39] The board is on fire. Active counter play!} Rxe7 {[%emt 0:00:42]} 36. Qe4+ {[%emt 0:02:17]} Kb8 {[%emt 0:00:47]} 37. d5 {[%emt 0:00:55]} (37. Rd2 $11) 37... exd5 $17 {[%emt 0:01:06]} (37... Qxa4 38. d6 cxd6 39. exd6 $11) 38. Qxd5 {[%emt 0:00:07] [#]} Rd7 {[%emt 0:01:25]} (38... Qxa4 $6 39. Rd2 $11) (38... g5 $1 $17 {[%cal Rg5h4] Hoping for ...gxh4+.} 39. hxg5 Rd7) 39. Qxc4 $11 {[%emt 0:00:36]} g5 {[%emt 0:00:12]} 40. fxg5 {[%emt 0:05:41]} Qxe5+ {[%emt 0:00:16]} 41. Kxg4 {[%emt 0:01:24]} Re8 {[%emt 0:14:52]} 42. Rf8 {[%emt 0:06:39]} g6 {[%emt 0:05:05]} 43. Rxe8+ {[%emt 0:04:39]} Qxe8 {[%emt 0:00:03][%mdl 4096] Endgame KQR-KQR} 44. Qf4 {[%emt 0:08:24]} (44. h5 Re7 45. Rf4 Qd7+ 46. Kg3 (46. Kh4 $2 Re1 $19) 46... Qd2 $19) (44. Rf4 $11) 44... Ka7 {[%emt 0:01:27]} (44... Qe6+ $15 45. Kg3 Ka7) 45. Kg3 {[%emt 0:02:03]} (45. Qc4 $11) 45... Qe6 {[%emt 0:05:34]} 46. Rf3 {[%emt 0:01:46]} Qxa2 {[%emt 0:01:17] White must now prevent ...Re7.} 47. Qe4 {[%emt 0:00:25] Against Re7. The position is equal.} Qa1 {[%emt 0:04:53]} 48. Qxg6 {[%emt 0:03:08]} Qg1+ {[%emt 0:00:23]} 49. Kf4 {[%emt 0:00:41]} Qh2+ {[%emt 0:01:49]} 50. Kg4 {[%emt 0:00:53]} Qg2+ {[%emt 0:00:14]} 51. Rg3 {[%emt 0:01:15]} Qe2+ {[%emt 0:00:09]} 52. Kh3 {[%emt 0:01:56]} Qf1+ {[%emt 0:00:27]} ({Don't play} 52... Rd2 53. Qf7 $16) 53. Kg4 {[%emt 0:00:36]} Qe2+ {[%emt 0:00:47]} 54. Kh3 {[%emt 0:03:09]} Qf1+ {[%emt 0:01:20]} ({Don't do} 54... Rd2 55. Qf7 $16) (54... Rd1 $5 55. Qc6 Qe5 $11) 55. Kg4 {[%emt 0:00:07] Weighted Error Value: White=0.19 (very precise) /Black=0.14 (very precise)} 1/2-1/2

[Event "Austrian Championship 2022"]
[Site "Vienna"]
[Date "2022.08.18"]
[Round "8.6"]
[White "Weichhart, Daniel"]
[Black "Ivanyk, Igor"]
[Result "0-1"]
[ECO "A46"]
[WhiteElo "1965"]
[BlackElo "2002"]
[Annotator "NA RC"]
[PlyCount "62"]
[EventDate "2022.08.12"]
[EventType "swiss"]
[EventCountry "AUT"]
[SourceTitle "playchess.com"]
[Source "ChessBase"]
[SourceQuality "1"]
[TimeControl "40/5400+30:1800+30"]

1. a3 {[%emt 0:00:08]} Nf6 {[%emt 0:03:11]} 2. Nf3 {[%emt 0:00:30]} e6 {[%emt 0:00:08]} 3. d4 {[%emt 0:00:22]} a6 {[%emt 0:01:34]} 4. Bf4 {[%emt 0:02:28]} d5 {[%emt 0:01:30]} 5. e3 {[%emt 0:00:52]} c5 {[%emt 0:01:35]} 6. Nbd2 {[%emt 0:03:19]} Nc6 {[%emt 0:01:46]} 7. dxc5 {[%emt 0:02:38]} Bxc5 {[%emt 0:03:25]} 8. b4 {[%emt 0:00:09]} Be7 {[%emt 0:06:33]} 9. h3 {[%emt 0:02:12]} b5 {[%emt 0:13:22]} 10. Bd3 {[%emt 0:00:27]} O-O {[%emt 0:01:14]} 11. O-O {[%emt 0:00:27]} Bb7 {[%emt 0:01:48]} 12. Qe2 {[%emt 0:00:33]} Bd6 {[%emt 0:16:35]} 13. Bxd6 {[%emt 0:05:13]} Qxd6 {[%emt 0:00:05]} 14. Rfd1 {[%emt 0:00:10]} e5 {[%emt 0:01:31]} 15. e4 {[%emt 0:01:10]} d4 {[%emt 0:04:41]} 16. Rac1 {[%emt 0:04:15]} Rac8 {[%emt 0:00:31]} 17. Nb3 {[%emt 0:01:05]} Nh5 {[%emt 0:11:42]} 18. c3 {[%emt 0:14:13]} Nf4 {[%emt 0:01:40]} 19. Qe1 {[%emt 0:01:08]} Qg6 {[%emt 0:04:17]} 20. Bf1 {[%emt 0:01:05]} Nxh3+ {[%emt 0:02:44]} 21. Kh2 {[%emt 0:00:06]} Nf4 {[%emt 0:00:38]} 22. Nc5 {[%emt 0:02:11]} Rc7 {[%emt 0:03:27]} 23. Nxb7 {[%emt 0:02:04]} Rxb7 {[%emt 0:00:08]} 24. cxd4 {[%emt 0:00:05]} Nxd4 {[%emt 0:02:17]} 25. Nxd4 {[%emt 0:00:12]} exd4 {[%emt 0:00:04]} 26. Rxd4 {[%emt 0:00:16]} Rb6 {[%emt 0:02:12]} 27. Qd1 {[%emt 0:04:45]} Qg5 {[%emt 0:01:25]} 28. Rd6 {[%emt 0:03:42]} Ne2 {[%emt 0:04:06]} 29. Bxe2 {[%emt 0:00:53]} Qf4+ {[%emt 0:00:08]} 30. Kg1 {[%emt 0:00:22]} Rxd6 {[%emt 0:00:25]} 31. Qc2 {[%emt 0:00:10]} Rd2 {[%emt 0:01:14]} 0-1